Cogmind - Beta 14 @@@ ROGUE MODE // 2024.08.24 @ 23:19:24 Player: Necroptosis Result: Destroyed by JY-KNS(j) with Overtuned Pulse Rifle Performance ------------- Evolutions (0) 0 Regions Visited (3) 600 Robots Destroyed (33) 165 Value Destroyed (566) 566 Prototype IDs (2) 40 Alien Tech Used (0) 0 Bonus (0) 0 TOTAL SCORE: 1371 Bonus ------- None Cogmind --------- Core Integrity 0/250 Matter 177/300 Energy 199/200 System Corruption 0% Temperature Cool (12) Movement Rolling (120) Ox1 Location -9/Recycling Parts ------- > --- POWER (1) -------- Subdweller Power Source > --- PROPULSION (2) --- Light Treads Subdweller Monowheel > --- UTILITY (2) ------ Small Storage Unit Hardened Light Armor Plating > --- WEAPON (2) ------- Heavy Assault Rifle Improved Light Cannon > --- INVENTORY (8) ---- Subdweller Monowheel Scrap Engine Seismic Detector Improved Light Cannon Grenade Launcher Datajack Peak State ------------ > --- POWER ------------ Subdweller Power Source > --- PROPULSION ------- Light Treads Subdweller Monowheel > --- UTILITY ---------- Small Storage Unit Hardened Light Armor Plating > --- WEAPON ----------- Heavy Assault Rifle Improved Light Cannon > --- INVENTORY -------- Subdweller Monowheel Scrap Engine Seismic Detector Improved Light Cannon Grenade Launcher Datajack [Rating: 14] Favorites ----------- Power Light Ion Engine Engine Light Ion Engine Propulsion Light Treads Treads Light Treads Wheel Wheel Utility Small Storage Unit Device Improved Terrain Scanner Storage Small Storage Unit Protection Hardened Light Armor Plating Weapon Heavy Assault Rifle Energy Gun Medium Laser Ballistic Gun Heavy Assault Rifle Ballistic Cannon Improved Light Cannon Launcher Grenade Launcher Build | -11 -10 -10 -9 ------- Run | Yrd Mat Sub Rec Slots Evolved . | . . . . Power . | . . . . Propulsion . | . . . . Utility . | . . . . Weapon . | . . . . Parts Attached 29 | 7 15 4 3 Power 4 | 1 2 1 . Engine 4 | 1 2 1 . Core . | . . . . Reactor . | . . . . Propulsion 7 | 2 3 1 1 Treads 3 | . 2 1 . Leg . | . . . . Wheel 4 | 2 1 . 1 Hover . | . . . . Flight . | . . . . Utility 4 | 2 1 . 1 Device 1 | 1 . . . Storage 1 | 1 . . . Processor . | . . . . Hackware . | . . . . Protection 2 | . 1 . 1 Artifact . | . . . . Weapon 14 | 2 9 2 1 Energy Gun 1 | 1 . . . Energy Cannon . | . . . . Ballistic Gun 9 | 1 7 1 . Ballistic Cannon 1 | . . . 1 Launcher 3 | . 2 1 . Special Weapon . | . . . . Impact Weapon . | . . . . Slashing Weapon . | . . . . Piercing Weapon . | . . . . Special Melee Weapon . | . . . . Unidentified Prototypes . | . . . . Parts Lost 9 | . 4 2 3 Power 2 | . 1 1 . Propulsion 4 | . 2 1 1 Utility 1 | . . . 1 Weapon 2 | . 1 . 1 Highest Loss Streak 3 | . 1 2 3 To Critical Strikes 1 | . 1 . . Average Slot Usage (%) 98 | . 99 93 99 Engine 12 | . 14 8 14 Treads 17 | . 11 25 27 Wheel 10 | . 15 2 . Device 2 | . 3 . . Storage 14 | . 14 14 14 Protection 11 | . 10 14 14 Energy Gun 6 | . 11 . . Ballistic Gun 20 | . 16 27 26 Peak Build Rating 14 | 9 11 12 14 Average Rating 9 | 5 8 11 12 On Entrance 8 | . 9 11 12 Naked Turns . | . . . . Heaviest Build 22 | 12 19 21 22 Greatest Support 40 | 26 26 40 40 Greatest Overweight (x) 3 | . 3 1 1 Average Overweight (x) . | . . . . Largest Inventory Capacity 8 | 8 8 8 8 Average Capacity 7 | 7 8 8 8 Most Carried 8 | 6 8 8 8 Average Carried 7 | 4 7 7 7 Final Capacity 8 | 8 8 8 8 Final Carried 8 | 6 8 8 7 Class Distribution -------------------- 96% | Mutant 3% | Scavenger-Mutant Dominant Class ---------------- Mutant | -10/Materials Mutant | -10/Subcaves Mutant | -9/Recycling Resources | -11 -10 -10 -9 ----------- Run | Yrd Mat Sub Rec Matter Collected 624 | 281 240 103 . Remotely . | . . . . Salvage Created 685 | 93 429 163 . Parts 56 | 13 30 13 . Haulers Intercepted 2 | . 2 . . Recyclers Shooed . | . . . . Parts Field Recycled . | . . . . Retrieved Matter . | . . . . Parts Self-Destructed 13 | . . 13 . Prevented . | . . . . Kills | -11 -10 -10 -9 ------- Run | Yrd Mat Sub Rec Combat Hostiles Destroyed 22 | . 17 5 . Guns 18 | . 13 5 . AOE 4 | . 4 . . Classes Destroyed 9 | 1 6 2 . Worker 1 | . 1 . . Tunneler 4 | 4 . . . Hauler 2 | . 2 . . Operator 1 | . 1 . . Turret 2 | . . 2 . Watcher 1 | . 1 . . Swarmer 14 | . 12 2 . Grunt 7 | . 5 2 . Subdweller 1 | . . 1 . Best Kill Streak 4 | 2 4 4 . Combat Bots Only 3 | . 3 2 . Max Kills in Single Turn 2 | 1 2 1 . Gunslinging . | . . . . Exploded 2 | . 2 . . Melee . | . . . . Uniques/NPCs Destroyed . | . . . . Combat | -11 -10 -10 -9 -------- Run | Yrd Mat Sub Rec Hostile Shots Fired 157 | . 87 35 35 Missed 41 | . 24 13 4 Damage Taken 1628 | . 604 342 682 Core 251 | . 84 49 118 Absorbed by Shields . | . . . . Core Remaining (%) 100 | 100 . . . Volleys Fired 92 | 11 53 22 6 Largest 2 | 2 2 2 2 Hottest 70 | 70 70 46 62 Shots Fired 174 | 22 99 41 12 Gun 161 | 22 93 38 8 Cannon 4 | . . . 4 Launcher 9 | . 6 3 . Special . | . . . . Kinetic 107 | 11 46 38 12 Thermal 58 | 11 47 . . Explosive 9 | . 6 3 . Electromagnetic . | . . . . Robot Hit Streak 9 | 2 9 8 8 Robot Miss Streak 4 | 2 3 3 4 Penetration Max . | . . . . Secondary Targets 1 | . 1 . . Max Gunslinging Chain 1 | . 1 . . Shots Hit Robots 103 | 9 61 26 7 Core Hits 53 | 4 32 15 2 Critical Kills . | . . . . Critical Parts Destroyed . | . . . . Critical Strikes 3 | . 3 . . Burn 3 | . 3 . . Melee Attacks . | . . . . Impact . | . . . . Slashing . | . . . . Piercing . | . . . . Sneak Attacks . | . . . . Combat Hostiles . | . . . . Follow-up Attacks . | . . . . Damage Inflicted 1751 | 91 1046 467 147 Guns 1190 | 91 625 387 87 Cannons 59 | . . . 59 Explosions 501 | . 421 80 . Melee . | . . . . Ramming 1 | . . . 1 Kinetic 778 | 42 203 387 146 Thermal 471 | 49 422 . . Explosive 501 | . 421 80 . Electromagnetic . | . . . . Impact . | . . . . Slashing . | . . . . Piercing . | . . . . Highest Corruption . | . . . . Average Corruption . | . . . . Corruption Purged . | . . . . Corruption Blocked . | . . . . Overload Shots . | . . . . Overflow Damage 18 | . 18 . . Projectiles . | . . . . Explosions 18 | . 18 . . Melee . | . . . . Knockbacks . | . . . . Impact . | . . . . Kinetic . | . . . . Secondary . | . . . . Self-Inflicted Damage 29 | . 29 . . Shots 2 | . 2 . . Rammed 1 | . . . 1 Targets Rammed 1 | . . . 1 Kicked . | . . . . Crushed . | . . . . Highest Temperature 455 | 120 455 2 179 Average Temperature 95 | 53 109 2 73 Received Heat Transfer 732 | . 108 177 447 Effects 1 | . 1 . . Shutdowns 1 | . 1 . . Siege Activations . | . . . . Robots Corrupted . | . . . . Combat Hostiles . | . . . . Parts Fried . | . . . . Impact Corruptions . | . . . . Robots Melted . | . . . . Combat Hostiles . | . . . . Parts Melted 6 | . 5 1 . Heat Transferred 1628 | 148 1480 . . Parts Sabotaged . | . . . . Parts Stolen . | . . . . Parts Stripped . | . . . . Power Chain Reactions . | . . . . Alert | -11 -10 -10 -9 ------- Run | Yrd Mat Sub Rec Peak Influence 310 | 20 310 . 79 Initial 79 | . 13 . 79 Average 110 | 8 129 . 76 Maximum Alert Level 1 | . 1 . . Low Security (%) 88 | 100 84 . 100 Level 1 11 | . 15 . . Level 2 . | . . . . Level 3 . | . . . . Level 4 . | . . . . Level 5 . | . . . . High Security . | . . . . Max Security . | . . . . Squads Dispatched 3 | . 3 . . Investigation 1 | . 1 . . Extermination . | . . . . Reinforcement 2 | . 2 . . Assault . | . . . . Garrison . | . . . . Intercept . | . . . . Searches Triggered . | . . . . Construction Impeded . | . . . . Haulers Reinforced . | . . . . Active Scanning Responses . | . . . . Cargo Convoy Interrupts . | . . . . Stealth | -11 -10 -10 -9 --------- Run | Yrd Mat Sub Rec Distress Signals 2 | . 2 . . Communications Jammed . | . . . . Distress Signals . | . . . . Times Spotted 39 | . 28 8 3 Peak Tracking Total 6 | . 6 3 5 Tactical Retreats 4 | . 2 2 . Traps | -11 -10 -10 -9 ------- Run | Yrd Mat Sub Rec Traps Triggered 1 | . 1 . . Indirectly . | . . . . Trap Hack Attempts . | . . . . Triggered . | . . . . Disarmed . | . . . . Reprogrammed . | . . . . Reused . | . . . . Traps Extracted . | . . . . Installed . | . . . . Triggered . | . . . . Machines | -11 -10 -10 -9 ---------- Run | Yrd Mat Sub Rec Machines Disabled 4 | . 1 2 1 Max in Single Turn 1 | . 1 1 1 Machines Repaired . | . . . . Machines Dismantled . | . . . . Machines Sabotaged . | . . . . Overloaded Fab Kills . | . . . . Hacking | -11 -10 -10 -9 --------- Run | Yrd Mat Sub Rec Machines Accessed 9 | . 6 . 3 Terminals 7 | . 6 . 1 Fabricators . | . . . . Repair Stations . | . . . . Recycling Units 1 | . . . 1 Scanalyzers . | . . . . Garrison Access . | . . . . Total Hacks 24 | . 18 . 6 Successful 18 | . 14 . 4 Failed 6 | . 4 . 2 Catastrophic 2 | . 2 . . Database Lockouts . | . . . . Manual 16 | . 13 . 3 Terminals 20 | . 18 . 2 Fabricators . | . . . . Repair Stations . | . . . . Recycling Units 2 | . . . 2 Scanalyzers . | . . . . Garrison Access . | . . . . Terminal Hacks 7 | . 5 . 2 Prototype ID Bank 1 | . 1 . . Terminal Index 1 | . 1 . . Alert Level 1 | . 1 . . Unreport Threat 1 | . 1 . . Zone Layout 1 | . 1 . . Release Object 2 | . . . 2 Fabricator Hacks . | . . . . Repair Station Hacks . | . . . . Recycling Unit Hacks 1 | . . . 1 Report Inventory 1 | . . . 1 Scanalyzer . | . . . . Garrison Access Hacks . | . . . . Unauthorized Hacks 10 | . 9 . 1 Terminals 9 | . 9 . . Botnet 3 | . 3 . . Skim 6 | . 6 . . Fabricators . | . . . . Repair Stations . | . . . . Recycling Units 1 | . . . 1 Recyclers 1 | . . . 1 Scanalyzers . | . . . . Garrison Access . | . . . . Data Cores Recovered . | . . . . Used . | . . . . Hacking Detections 7 | . 6 . 1 Full Trace Events 1 | . 1 . . Feedback Events . | . . . . Feedback Blocked . | . . . . Robot Schematics Acquired . | . . . . Robots Built . | . . . . Authchips . | . . . . Time . | . . . . Total Robot Build Rating . | . . . . Part Schematics Acquired . | . . . . Parts Built . | . . . . Authchips . | . . . . Time . | . . . . Total Part Build Rating . | . . . . Parts Repaired . | . . . . Time . | . . . . Parts Recycled . | . . . . Recycled Matter . | . . . . Retrieved Matter . | . . . . Retrieved Components . | . . . . Parts Scanalyzed . | . . . . Part Schematics Acquired . | . . . . Parts Damaged . | . . . . Bothacking | -11 -10 -10 -9 ------------ Run | Yrd Mat Sub Rec Used RIF Installer . | . . . . Robots Hacked . | . . . . Non-combat . | . . . . Combat . | . . . . Robot Hacks Applied . | . . . . Relay Couplers Released . | . . . . Fabnet Peak Effective % . | . . . . Robots Rewired . | . . . . Allies Hacked . | . . . . Hacks Repelled . | . . . . Allies | -11 -10 -10 -9 -------- Run | Yrd Mat Sub Rec Total Allies . | . . . . Largest Group . | . . . . Highest-Rated Group . | . . . . Highest-Rated Ally . | . . . . Total Orders . | . . . . Ally Attacks . | . . . . Total Damage . | . . . . Kills . | . . . . Allies Corrupted . | . . . . Allies Melted . | . . . . Intel | -11 -10 -10 -9 ------- Run | Yrd Mat Sub Rec Robot Analysis Total . | . . . . Derelict Logs Recovered . | . . . . Drone Launches . | . . . . Drone Recoveries . | . . . . Exploration | -11 -10 -10 -9 ------------- Run | Yrd Mat Sub Rec Turns Passed 2043 | 119 1168 438 318 Spaces Moved 1204 | 62 732 223 187 Core 9 | 2 7 . . Treads 503 | . 134 193 176 Legs . | . . . . Wheels 692 | 60 591 30 11 Hover . | . . . . Flight . | . . . . Fastest Speed 50 | 50 90 95 120 Average Speed 122 | 89 107 151 157 Slowest Speed 200 | 100 200 160 160 Overloaded Moves . | . . . . Propulsion Burnouts . | . . . . Robots Hopped . | . . . . Cave-ins Triggered . | . . . . Exploration Rate (%) 37 | 5 87 19 39 Regions Visited 3 Branch Regions 2 Pre-discovered Areas 1 | . 1 . . Known Exits Taken 2 | . 1 1 . Unknown Exits Taken 1 | 1 . . . Scrap Searched 1 | . . 1 . Spaces Dug . | . . . . Terrain Destroyed 30 | . 26 4 . Melee . | . . . . Projectile . | . . . . AOE 30 | . 26 4 . Terrain Rammed . | . . . . Walls Destroyed . | . . . . Machines Disabled . | . . . . Actions | -11 -10 -10 -9 --------- Run | Yrd Mat Sub Rec Total 1608 | 102 1026 282 198 Wait 258 | 17 210 31 . Move 1201 | 61 731 222 187 Hop . | . . . . Pick Up 16 | 6 7 2 1 Fast Attach 13 | 7 5 1 . Attach 6 | . 2 1 3 Detach . | . . . . Swap 10 | . 8 2 . Drop 11 | . 10 1 . Fire 92 | 11 53 22 6 Melee . | . . . . Ram . | . . . . Kick . | . . . . Crush 1 | . . . 1 Escape Stasis . | . . . . Rewire . | . . . . Trap . | . . . . Miscellaneous . | . . . . Route ------- -11/Scrapyard -10/Materials (discovered 5 exits: *Mat x3 / [*Min] / *Sub) -10/Subcaves (discovered 2 exits: [*Mat] / *Rec) -9/Recycling (discovered 1 exit: Fac) History --------- Turn | Location | Event 17 | -11/Scrapyard | Discovered new exit (range 15) 120 | -11/Scrapyard | Entered Materials 311 | -10/Materials | Build established: Mutant 489 | -10/Materials | Discovered new exit (range 9) 552 | -10/Materials | Discovered new exit (range 15) 867 | -10/Materials | Discovered new exit (range 4) 1009 | -10/Materials | Learned Recycling recycling unit intel 1059 | -10/Materials | Identified exit to Subcaves 1099 | -10/Materials | Identified exit to Materials 1145 | -10/Materials | Learned location of 2 exits from Materials 1152 | -10/Materials | Learned location of Storage (-9) 1170 | -10/Materials | Learned location of 1 exit from Recycling 1288 | -10/Materials | Entered Subcaves 1289 | -10/Subcaves | Identified exit to Recycling 1404 | -10/Subcaves | Discovered new exit (range 15) 1459 | -10/Subcaves | Disturbed a concealed Subdweller 1674 | -10/Subcaves | A swath of the cavern ceiling suddenly collapsed 1691 | -10/Subcaves | Core integrity fell below 50% 1726 | -10/Subcaves | Entered Recycling 1727 | -9/Recycling | Identified exit to Factory 1728 | -9/Recycling | Loaded intel: 7 recycling unit locations 1974 | -9/Recycling | Scanned before Scraplab entrance 1998 | -9/Recycling | Entered Scraplab 2002 | -9/Recycling | Angered Scraplab inhabitants 2017 | -9/Recycling | Found Prototype Device 2025 | -9/Recycling | Core integrity fell below 20% 2044 | -9/Recycling | Destroyed by JY-KNS(j) with Overtuned Pulse Rifle Last Messages --------------- URGENT: Link to external system right away! 02002_ Critical hit (Burn: +50). 02005_ Machine disabled. 02008_ Hvy. Assault Rifle destroyed. 02010_ LJ-ZV7(j): "Defend the Scraplab!" Prototype Device integrity failing. 02013_ Machine disabled. 02016_ Hrd. Light Armor Plating destroyed. 02017_ Acquired Prototype Device. 02019_ Critical hit (Burn: +50). Prototype Device integrity failing. 02023_ LJ-ZV7(j) heat spikes uncontrollably. 02023_ Critical hit (Burn: +50). 02027_ Slammed into JY-KNS(j). 02029_ Lgt. Treads destroyed. Prototype Device integrity failing. 02034_ JY-KNS(j) heat spikes uncontrollably. 02035_ JY-KNS(j) heat damages Ovr. Titanium Leg. 02039_ The wall retracts into the floor. Prototype Device integrity failing. Map ----- +----------------------------------------------------+ | ??????????????????????????????????????? | | ??????????????????????????????????????? | | ??????????????????????????????????????? | | ??????????????????????????????????????? | | ??????????????????????????????????????? | | ??????????????????????????????????????? | | ??????????????????????????????????????? | | ??????????????????????????????????????? | | ?????????????????